bitfinex/quotes_ETHUSD_20240822
["timestamp","ask_amount","ask_price","bid_price","bid_amount"]
[1724335947680,2.77,2615.4,2614.8,3.8243]
[1724335947883,2.77,2615.4,2614.6,3.82455]
[1724335948028,1.532031,2618.3,2614.8,2.2815]
[1724335948029,2.4497,2616.2,2614.8,2.2815]
[1724335948227,6.2723,2616.1,2614.7,0.382455]
[1724335948556,3.82287,2615.9,2614.9,3.8242]
[1724335948751,3.82308,2615.7,2614.9,7.64833]
[1724335949077,2.77,2616.2,2615.3,3.82352]
[1724335949222,6.59242,2616.2,2615.4,0.382352]
[1724335949667,6.59242,2616.2,2615.3,3.82352]
[1724335950078,2.77,2616.2,2615.3,3.82352]
[1724335950376,2.77,2616.2,2615.8,3.82277]
[1724335950526,2.77,2616.2,2615.4,0.55]
[1724335950527,2.77,2616.2,2615.6,3.8231]
[1724335950881,2.77,2616.2,2615.0,3.0]
[1724335950882,2.4214,2616.1,2615.5,3.82335]
[1724335951027,2.4214,2616.1,2615.3,3.82365]
[1724335951028,2.4214,2616.1,2615.3,3.8236]
[1724335951228,2.4214,2616.1,2615.0,3.0]
[1724335951560,3.82315,2615.7,2614.8,3.82438]
[1724335951739,6.26513,2615.9,2615.1,3.82384]
[1724335951740,2.4423,2615.9,2615.1,3.82384]
[1724335952080,2.4423,2615.9,2614.7,0.382455]
[1724335952081,2.4423,2615.9,2615.2,3.82371]
[1724335952274,2.77,2616.2,2614.4,6.481198]
[1724335952275,5.1989,2616.2,2615.6,3.82312]
[1724335952469,5.1989,2616.2,2615.1,3.8239]
[1724335952682,2.77,2616.2,2616.0,3.82251]
[1724335952876,2.77,2616.2,2615.6,3.82312]
[1724335953395,2.4289,2616.1,2615.4,3.8234]
[1724335953689,2.4289,2616.1,2615.4,0.38234]
[1724335953901,2.77,2616.2,2615.0,3.0]
[1724335954103,2.77,2616.2,2615.9,3.82275]
[1724335954246,5.3317,2616.5,2616.0,3.82252]
[1724335954445,3.04,2616.7,2615.9,3.82263]
[1724335954650,3.04,2616.7,2616.1,3.82239]
[1724335954878,3.04,2616.7,2615.9,3.82263]
[1724335954879,3.04,2616.7,2615.9,7.64531]
[1724335955098,3.04,2616.7,2615.9,0.764531]
[1724335955296,3.8219,2616.5,2615.9,0.764531]
[1724335955594,6.86169,2616.7,2615.4,2.2991]
[1724335955595,3.04,2616.7,2615.4,2.2991]
[1724335955796,3.04,2616.7,2615.9,3.82276]
[1724335956011,3.04,2616.7,2615.7,3.82298]
[1724335956214,3.82215,2616.4,2615.5,3.82326]
[1724335956385,2.3915,2616.5,2615.6,0.45877291]
[1724335956563,3.82242,2616.2,2615.6,0.382326]
[1724335956879,3.82212,2616.4,2615.6,3.82312]
[1724335957235,2.3915,2616.5,2615.4,3.82338]
[1724335957367,2.3915,2616.5,2615.5,3.0]
[1724335957566,3.8222,2616.3,2615.5,6.82327]
[1724335957870,3.8222,2616.3,2615.3,3.82364]
[1724335957871,3.82252,2616.1,2615.3,3.82364]
[1724335958173,2.3362,2616.0,2615.2,3.82367]
[1724335958372,2.3362,2616.0,2615.0,2.4144]
[1724335958373,2.3362,2616.0,2615.0,3.82406]
[1724335958607,2.3362,2616.0,2615.3,3.82358]
[1724335958816,2.3362,2616.0,2615.1,7.64768]
[1724335959112,3.82278,2615.9,2615.1,8.412398]
[1724335959293,2.3362,2616.0,2615.3,3.82363]
[1724335959460,2.3362,2616.0,2615.4,3.82341]
[1724335959665,2.3362,2616.0,2615.5,7.72305545]
[1724335959875,2.3362,2616.0,2615.3,3.82353]
[1724335960110,2.3362,2616.0,2615.4,3.82336]
[1724335960305,2.3362,2616.0,2615.7,3.82304]
[1724335960711,2.3362,2616.0,2615.8,3.82289]
[1724335960927,3.0,2616.5,2615.8,3.82291]
[1724335960928,2.3832,2616.4,2615.8,3.82291]
[1724335961128,2.3832,2616.4,2616.1,3.82239]
[1724335961333,2.3832,2616.8,2616.2,3.89874849]
[1724335961635,2.3832,2616.8,2616.1,3.82239]
[1724335961636,2.3832,2616.8,2616.3,3.89852549]
[1724335962034,2.3832,2616.8,2616.2,3.8222]
[1724335962331,3.82178,2616.6,2615.8,3.82282]
[1724335962531,6.20477,2616.8,2615.8,3.82282]
[1724335962830,6.86168,2616.7,2615.9,3.82264]
[1724335963032,3.04,2616.7,2616.0,3.82261]
[1724335963342,2.77,2617.0,2616.2,3.82223]
[1724335963634,2.77,2617.0,2616.1,0.382261]
[1724335963635,6.59131,2617.0,2616.1,0.382261]
[1724335963789,2.3244,2616.9,2616.2,3.82233]
[1724335964133,6.59131,2617.0,2616.8,3.82143]
[1724335964134,2.77,2617.0,2616.8,3.82143]
[1724335964336,2.77,2617.0,2616.4,2.3224]
[1724335964337,2.77,2617.0,2616.9,7.64262]
[1724335964539,3.04,2617.5,2617.1,3.82098]
[1724335965033,3.04,2617.5,2616.9,3.8212]
[1724335965240,3.04,2617.5,2617.2,3.82087]
[1724335965388,3.04,2617.5,2617.0,0.38212]
[1724335965389,3.04,2617.5,2617.1,3.82092]
[1724335965586,3.04,2617.5,2616.7,3.8215]
[1724335965816,6.86046,2617.5,2616.7,3.8215]
[1724335966132,6.86046,2617.5,2616.5,3.82182]
[1724335966133,3.04,2617.5,2616.5,3.82184]
[1724335966333,3.04,2617.5,2616.8,3.82135]
[1724335966502,3.04,2617.5,2616.8,3.82139]
[1724335966831,6.86044,2617.5,2616.7,3.82149]
[1724335966991,6.86044,2617.5,2616.7,4.585818]
[1724335967327,6.86044,2617.5,2616.8,3.82142]
[1724335967328,3.04,2617.5,2616.8,3.82142]
[1724335967538,3.04,2617.5,2616.7,4.585818]
[1724335967539,6.86046,2617.5,2616.7,4.585818]
[1724335967688,2.457,2617.3,2616.4,3.82193]
[1724335967893,3.82104,2617.1,2616.4,3.82204]
[1724335968226,3.82147,2616.8,2616.1,4.204741]
[1724335968458,8.00401049,2617.2,2615.7,2.4105]
[1724335968459,2.4027,2616.6,2615.8,3.82292]
[1724335968670,6.22454,2616.6,2615.3,2.2519]
[1724335968821,6.22454,2616.6,2614.6,7.928]
[1724335968822,3.82206,2616.4,2615.6,3.82312]
[1724335969022,7.6442,2616.4,2615.5,3.82325]
[1724335969225,7.6442,2616.4,2615.5,7.64652]
[1724335969541,3.82213,2616.4,2615.4,3.82347]
[1724335969756,3.04,2616.7,2615.2,3.8237]
[1724335969757,3.82258,2616.1,2615.2,3.8237]
[1724335969962,3.82264,2616.0,2615.1,4.206264]
[1724335970143,3.82314,2615.7,2614.9,3.82411]
[1724335970326,3.82321,2615.6,2614.7,3.82441]
[1724335970528,3.82321,2615.6,2614.8,3.82435]
[1724335970841,3.82321,2615.6,2614.9,0.382435]
[1724335971041,3.82321,2615.6,2614.5,3.8247]
[1724335971231,2.3567,2615.5,2614.6,3.82458]
[1724335971426,2.3567,2615.5,2614.3,2.4041]
[1724335971637,2.3567,2615.5,2615.1,3.82393]
[1724335971954,2.3567,2615.5,2614.9,7.64835]
[1724335972206,2.3567,2615.5,2614.4,3.82489]
[1724335972356,2.3567,2615.5,2614.7,3.82448]
[1724335972575,2.3567,2615.5,2614.8,3.82424]
[1724335972727,2.3567,2615.5,2614.3,6.22914]
[1724335973053,2.3567,2615.5,2614.9,3.82412]
[1724335973259,2.3567,2615.5,2614.9,0.764857]
[1724335973461,2.3567,2615.5,2614.4,3.0]
[1724335973660,2.3567,2615.5,2614.8,3.82426]
[1724335973862,2.3567,2615.5,2614.4,3.82484]
[1724335973863,3.82362,2615.4,2614.4,3.82484]
[1724335974041,6.18017,2615.5,2614.5,0.622894]
[1724335974239,6.18017,2615.5,2614.5,4.447694]
[1724335974240,3.82363,2615.4,2614.5,4.447694]
[1724335974455,2.3567,2615.5,2614.8,3.82427]
[1724335974759,2.3567,2615.5,2615.1,3.82392]
[1724335974933,2.3567,2615.5,2614.9,3.82412]
[1724335975144,2.3567,2615.5,2615.2,0.07646527]
[1724335975466,2.3567,2615.5,2615.0,0.382412]
[1724335976439,2.3567,2615.5,2615.1,3.90039592]
[1724335976663,5.4232,2615.9,2615.1,3.90032592]
[1724335976859,5.4232,2615.9,2615.3,3.82355]
[1724335977192,5.4232,2615.9,2615.4,0.07645975]
[1724335977687,10.698,2616.4,2615.2,0.42827379]
[1724335977688,2.4719,2616.3,2615.5,3.89969976]
[1724335977829,2.4719,2616.3,2615.7,3.82298]
[1724335978167,2.4719,2616.3,2615.8,0.07644724]
[1724335978379,2.4719,2616.3,2615.5,3.82322]
[1724335978556,2.4719,2616.3,2615.7,3.82292]
[1724335978870,2.77,2616.4,2615.6,0.382324]
[1724335979171,2.77,2616.4,2615.0,11.75206]
[1724335979172,2.77,2616.4,2615.8,3.82286]
[1724335979329,2.77,2616.4,2615.9,3.82268]
[1724335979526,2.77,2616.4,2615.9,3.82273]
[1724335979733,2.77,2616.4,2616.0,3.82255]
[1724335980174,2.77,2616.4,2616.1,3.82246]
[1724335980381,2.2556,2616.9,2616.1,3.82246]
[1724335980580,2.2556,2616.9,2616.3,3.82219]
[1724335980745,3.82154,2616.8,2615.9,3.82268]
[1724335980963,2.2556,2616.9,2616.1,3.82243]
[1724335981192,2.2556,2616.9,2615.9,0.382268]
[1724335981193,2.2556,2616.9,2616.4,3.82202]
[1724335981337,2.2556,2616.9,2616.5,0.07642791]
[1724335981538,2.2556,2616.9,2616.4,0.0764281]
[1724335981754,2.2556,2616.9,2616.3,3.82206]
[1724335981962,2.2556,2616.9,2616.3,4.586509]
[1724335982289,5.1862,2617.3,2615.9,4.204988]
[1724335982439,5.1862,2617.3,2616.1,3.82235]
[1724335982643,5.1862,2617.3,2615.9,0.382268]
[1724335982846,3.82091,2617.2,2616.3,3.82208]
[1724335983171,7.6419,2617.2,2616.3,3.82208]
[1724335983524,5.1862,2617.3,2616.3,0.76445]
[1724335983802,3.8214,2616.9,2616.1,3.82246]
[1724335984087,3.8214,2616.9,2615.9,0.382268]
[1724335984088,3.82103,2617.1,2616.2,3.82227]
[1724335984293,3.82103,2617.1,2616.2,3.82224]
[1724335984662,3.82118,2617.0,2616.2,3.82224]
[1724335984863,3.82103,2617.1,2616.3,3.82207]
[1724335985398,9.00698,2617.3,2616.2,0.43111576]
[1724335985399,9.00693,2617.3,2616.2,0.43111576]
[1724335985696,3.8209,2617.2,2616.2,3.82228]
[1724335985839,3.8209,2617.2,2616.4,7.64396]
[1724335986043,12.8278,2617.3,2616.4,7.64396]
[1724335986290,12.82776,2617.3,2616.5,3.82186]
[1724335986445,12.82776,2617.3,2616.4,4.586346]
[1724335986446,3.82103,2617.1,2616.4,4.586346]
[1724335986784,9.00693,2617.3,2616.4,7.64391]
[1724335986946,9.00693,2617.3,2616.5,3.82188]
[1724335987476,3.82088,2617.2,2616.4,3.82195]
[1724335987872,5.1862,2617.3,2615.9,3.382268]
[1724335988089,3.82111,2617.1,2616.1,3.82245]
[1724335988386,3.82111,2617.1,2616.3,3.82215]
[1724335988605,3.82146,2616.8,2616.0,4.4010968]
[1724335988899,3.0,2617.2,2615.6,3.82308]
[1724335988900,3.82198,2616.5,2615.6,3.82308]
[1724335989403,3.82198,2616.5,2615.7,3.82297]
[1724335989684,17.98173,2616.7,2615.8,3.82288]
[1724335989885,3.82185,2616.6,2615.8,3.82288]
[1724335990242,6.23199,2616.7,2615.9,3.82274]
[1724335990559,6.23199,2616.7,2616.0,0.07644743]
[1724335990560,2.4103,2616.7,2616.0,0.07644743]
[1724335990894,2.4103,2616.7,2616.1,3.82233]
[1724335991051,2.4103,2616.7,2616.2,0.07643741]
[1724335991252,2.4103,2616.7,2616.2,3.89875741]
[1724335991595,3.04,2617.0,2616.2,4.59438874]
[1724335991890,3.04,2617.0,2615.7,6.29224]
[1724335991891,4.21400637,2617.0,2616.3,0.076434]
[1724335992097,3.04,2617.0,2616.4,3.82192]
[1724335992793,3.04,2617.0,2616.3,3.82216]
[1724335993249,4.99493637,2617.2,2616.1,3.82239]
[1724335993250,1.17400637,2617.2,2616.1,3.82239]
[1724335993449,1.17400637,2617.5,2616.9,3.82122]
[1724335993654,4.99416637,2617.7,2616.9,3.82122]
[1724335993956,4.99416637,2617.7,2616.9,7.64245]
[1724335994301,4.99423637,2617.7,2616.9,4.585465]
[1724335994483,4.99423637,2617.7,2616.5,3.82179]
[1724335994484,3.82045,2617.5,2616.5,3.82179]
[1724335994649,1.17400637,2617.5,2616.7,3.82151]
[1724335994853,1.56553318,2617.7,2616.7,3.82151]
[1724335994854,1.17400637,2617.6,2616.7,3.82151]
[1724335995101,1.17400637,2617.6,2616.5,3.82181]
[1724335995102,2.497,2617.2,2616.5,3.82175]
[1724335995549,2.497,2617.2,2616.6,3.82166]
[1724335995752,2.497,2617.2,2616.3,3.82213]
[1724335995980,2.497,2617.2,2616.7,3.82151]
[1724335996367,2.497,2617.2,2616.4,4.7684869]
[1724335996568,3.82109,2617.1,2616.3,3.82207]
[1724335996806,6.31787,2617.2,2616.4,3.82203]
[1724335996955,10.13886,2617.2,2616.4,3.82203]
[1724335997157,1.17400637,2617.1,2616.4,3.82203]
[1724335997411,1.17400637,2617.1,2616.0,3.82256]
[1724335997412,3.82155,2616.8,2616.0,3.82256]
[1724335997556,2.497,2616.7,2616.0,3.82256]
[1724335997893,4.99520637,2617.0,2616.1,3.82244]
[1724335998095,3.82139,2616.9,2616.1,3.82244]
[1724335998257,3.82161,2616.7,2616.0,3.82253]
[1724335998457,4.99539637,2616.9,2616.1,3.82246]
[1724335998679,4.99547637,2616.8,2615.9,3.82268]
[1724335998866,9.90433,2616.7,2615.8,7.64564]
[1724335999083,3.82177,2616.6,2615.8,3.82281]
[1724335999271,7.71997049,2616.5,2615.6,4.07061]
[1724335999591,7.71997049,2616.5,2615.2,3.82374]
[1724335999592,6.21667,2616.3,2615.4,3.8234]
[1724335999818,7.39067637,2616.3,2615.4,3.82339]
[1724336000320,6.21667,2616.3,2615.5,3.82325]
[1724336000486,6.21667,2616.3,2615.6,3.82321]
[1724336000487,2.3944,2616.3,2615.6,3.82321]
[1724336000834,3.46150637,2616.7,2616.0,3.82256]
[1724336001113,3.82195,2616.5,2615.5,3.82321]
[1724336001413,1.17400637,2616.5,2615.8,3.82279]
[1724336001716,1.17400637,2616.6,2615.8,3.82279]
[1724336001873,1.17400637,2616.6,2615.8,7.64562]
[1724336002073,1.17400637,2616.6,2615.8,3.82279]
[1724336002381,6.10919,2616.7,2615.8,3.82279]
[1724336002382,2.2875,2616.7,2615.8,4.205129]
[1724336002517,3.46150637,2616.7,2615.9,3.82271]
[1724336002715,3.46150637,2616.7,2615.9,3.89915319]
[1724336002936,3.46150637,2616.7,2616.0,3.82249]
[1724336003230,2.2875,2616.7,2616.1,3.89890861]
[1724336003590,1.17400637,2616.9,2616.2,3.82229]
[1724336003811,6.79743318,2617.0,2615.8,2.4192]
[1724336003812,6.40590637,2617.0,2616.4,3.82196]
[1724336004029,5.2319,2617.0,2616.5,3.89820665]
[1724336004988,2.77,2617.0,2616.6,3.82174]
[1724336005191,2.77,2617.0,2616.6,3.82171]
[1724336005819,2.77,2617.0,2616.7,0.07642227]
[1724336006331,2.77,2617.0,2616.2,3.82224]
[1724336006635,2.2979,2616.9,2616.0,3.82256]
[1724336006933,2.2979,2616.9,2616.3,3.82215]
[1724336007130,2.2979,2616.9,2616.0,3.82251]
[1724336007131,6.11921,2616.9,2616.0,3.82251]
[1724336007444,6.11921,2616.9,2615.8,2.4192]
[1724336007445,2.2979,2616.9,2616.2,3.82223]
[1724336007651,2.2979,2616.9,2616.1,3.82236]
[1724336007652,3.47190637,2616.9,2616.1,3.82236]
[1724336007940,3.47190637,2616.9,2616.2,4.204496]
[1724336008152,2.2979,2616.9,2616.2,4.204496]
[1724336008304,3.94400637,2617.0,2616.4,3.82204]
[1724336008500,3.94400637,2617.0,2616.2,4.204426]
[1724336008850,2.77,2617.0,2616.4,3.82194]
[1724336009018,2.77,2617.0,2616.5,0.07642927]
[1724336009220,4.21400637,2617.4,2616.7,7.64303]
[1724336009422,4.21400637,2617.4,2616.5,0.07642927]
[1724336009423,8.03458637,2617.4,2616.8,0.07642107]
[1724336009622,8.03458637,2617.4,2616.6,3.82173]
[1724336009623,11.85525637,2617.4,2616.6,3.82173]
[1724336009975,2.2876,2616.9,2616.3,3.82211]
[1724336010540,6.10892,2616.9,2616.0,3.0]
[1724336010879,2.2876,2616.9,2616.2,3.8223]
[1724336011084,2.2876,2616.9,2616.4,3.82196]
[1724336011455,3.60100637,2617.2,2616.6,3.82172]
[1724336011769,7.42195637,2617.2,2616.4,3.82194]
[1724336011935,4.99503637,2617.1,2616.2,7.64447]
[1724336012136,1.17400637,2617.0,2616.3,3.82216]
[1724336012384,1.17400637,2617.0,2616.2,3.82223]
[1724336012552,1.17400637,2617.0,2616.0,3.682267]
[1724336012758,1.17400637,2617.1,2616.4,7.64388]
[1724336012952,1.17400637,2617.1,2616.6,3.82165]
[1724336013294,2.427,2617.2,2616.7,0.07642017]
[1724336013583,4.21400637,2617.4,2616.9,3.82123]
[1724336013791,4.21400637,2617.4,2616.6,3.82166]
[1724336014085,4.99473637,2617.3,2616.6,3.82166]
[1724336014301,4.99473637,2617.3,2616.6,7.64333]
[1724336014446,1.17400637,2617.3,2616.7,3.82159]
[1724336014645,1.17400637,2617.3,2616.6,3.82166]
[1724336014646,8.03469637,2617.4,2616.6,3.82166]
[1724336014878,4.99480637,2617.3,2616.4,3.82195]
[1724336015059,1.17400637,2617.1,2615.7,2.4748]
[1724336015357,1.17400637,2617.0,2616.3,3.82211]
[1724336015573,1.17400637,2617.0,2616.3,3.82209]
[1724336015882,1.17400637,2617.1,2616.3,3.82209]
[1724336016067,1.17400637,2617.0,2616.3,3.82209]
[1724336016274,1.17400637,2617.0,2616.3,4.204299]
[1724336016469,1.17400637,2617.1,2616.3,4.204299]
[1724336016673,1.17400637,2617.1,2616.5,3.82189]
[1724336017345,1.17400637,2617.0,2616.3,7.6442]
[1724336017560,1.17400637,2617.0,2615.8,7.07033]
[1724336017561,1.17400637,2617.0,2616.4,3.82198]
[1724336017901,1.17400637,2617.1,2616.6,3.82169]
[1724336018199,1.17400637,2617.1,2616.5,3.82181]
[1724336018414,1.17400637,2617.0,2616.5,3.82181]
[1724336018708,1.17400637,2616.9,2616.2,3.82223]
[1724336018904,1.17400637,2616.8,2616.2,3.82223]
[1724336019108,8.81678637,2616.9,2616.1,3.82245]
[1724336019265,2.4294,2616.7,2616.1,3.82245]
[1724336019471,7.42504637,2616.7,2616.0,3.82259]
[1724336019768,7.42504637,2616.7,2615.7,3.82301]
[1724336019769,4.99597637,2616.5,2615.7,3.82301]
[1724336020102,4.99597637,2616.5,2615.8,3.8229]
[1724336020306,1.17400637,2616.5,2615.8,3.8229]
[1724336020461,1.17400637,2616.5,2615.9,3.82276]
[1724336020994,1.17400637,2616.4,2615.9,3.82276]
[1724336021156,1.17400637,2616.4,2615.8,4.20511]
[1724336021801,3.82221,2616.3,2615.6,3.82311]
[1724336021999,4.99606637,2616.4,2615.7,3.82305]
[1724336022296,4.99607637,2616.4,2615.6,3.82311]
[1724336022505,4.99607637,2616.4,2615.6,8.4491161]
[1724336022706,3.82221,2616.3,2615.6,3.82311]
[1724336022911,2.4009,2616.2,2615.4,3.82339]
[1724336023213,2.4009,2616.2,2615.6,3.8232]
[1724336023859,2.4009,2616.2,2615.4,7.64681]
[1724336024058,2.4009,2616.2,2615.5,4.205591]
[1724336024293,2.4009,2616.2,2615.5,4.205621]
[1724336024461,2.4009,2616.2,2615.6,3.82321]
[1724336025336,2.4009,2616.2,2615.8,3.8229]
[1724336025543,6.82168,2616.7,2615.8,3.82283]
[1724336025544,2.2776,2616.6,2615.8,3.82283]
[1724336025692,2.2776,2616.6,2616.0,3.82261]
[1724336025896,2.2776,2616.6,2616.1,3.8989225]
[1724336026146,2.2776,2616.6,2616.2,3.82231]
[1724336026292,2.2776,2616.6,2616.1,3.82246]
[1724336026649,2.2776,2616.6,2615.6,2.8448531]
[1724336026650,2.2776,2616.6,2615.6,8.0667531]
[1724336026941,2.2776,2616.6,2615.3,6.82363]
[1724336026942,3.82257,2616.1,2615.3,6.82363]
[1724336027147,3.82257,2616.1,2615.2,3.82367]
[1724336027148,3.82256,2616.1,2615.2,3.82367]
[1724336027316,3.8227,2616.0,2615.2,3.82367]
[1724336027516,3.8227,2616.0,2615.2,5.119048]
[1724336027745,3.8227,2616.0,2615.2,8.942768]
[1724336027948,3.8227,2616.0,2615.2,5.119048]
[1724336028145,3.82248,2616.1,2615.2,5.119048]
[1724336028450,3.82248,2616.1,2615.4,3.82349]
[1724336028994,2.4168,2616.2,2615.5,0.07646255]
[1724336029196,2.4168,2616.2,2615.7,3.82299]
[1724336029440,5.3387,2616.6,2615.8,0.07645085]
[1724336029664,5.3387,2616.6,2616.0,3.82251]
[1724336030113,8.88995,2617.0,2616.2,3.8222]
[1724336030302,8.88995,2617.0,2616.3,0.07643531]
[1724336030900,5.0687,2617.0,2616.3,0.07643531]
[1724336031096,5.0687,2617.0,2616.3,4.28839884]
[1724336031350,8.88986,2617.0,2616.3,4.21196353]
[1724336031644,8.88986,2617.0,2616.2,3.8222]
[1724336031810,3.82169,2616.7,2615.7,7.435808]
[1724336031996,5.0687,2617.0,2615.7,3.612878]
[1724336032199,3.82138,2616.9,2616.1,3.82247]
[1724336032395,3.82138,2616.9,2616.1,3.72247]
[1724336032831,5.0687,2617.0,2615.9,3.82269]
[1724336033017,7.6434,2616.7,2615.9,3.82276]
[1724336033216,3.82168,2616.7,2615.9,3.82276]
[1724336033446,3.82139,2616.9,2615.9,4.887335]
[1724336033615,3.82139,2616.9,2616.1,3.82237]
[1724336034010,3.82149,2616.8,2616.1,3.82237]
[1724336034258,3.82161,2616.7,2616.0,3.8226]
[1724336034460,3.82139,2616.9,2616.0,3.8226]
[1724336034461,7.64283,2616.9,2616.0,3.8226]
[1724336034618,3.82139,2616.9,2616.1,7.64487]
[1724336034803,3.82139,2616.9,2616.1,3.8224]
[1724336035255,3.82139,2616.9,2616.1,7.6448]
[1724336035423,5.0687,2617.0,2616.3,3.82211]
[1724336036425,8.88988,2617.0,2616.3,3.82211]
[1724336036741,5.0687,2617.0,2616.3,3.82211]
[1724336037042,1.18934805,2616.4,2616.3,3.82211]
[1724336037198,1.18934676,2616.6,2616.5,3.82189]
[1724336037402,1.18934676,2616.6,2616.4,3.82204]
[1724336037716,1.18934676,2616.6,2616.5,3.82187]
[1724336037920,1.18934676,2616.7,2616.5,3.82187]
[1724336038116,1.18934676,2616.7,2616.6,3.82175]
[1724336038322,1.18934676,2616.8,2616.6,3.82175]
[1724336038536,1.5857974,2616.9,2616.6,3.82175]
[1724336038537,1.18934676,2616.7,2616.6,3.82175]
[1724336038904,1.18934676,2616.8,2616.6,3.82175]
[1724336039106,1.18934676,2616.8,2616.6,3.82168]
[1724336039610,1.18934676,2616.8,2616.6,3.82166]
[1724336039946,1.18934676,2616.7,2616.6,3.82166]
[1724336040183,1.18934676,2616.7,2616.4,3.82192]
[1724336040318,1.5857974,2616.9,2616.4,3.82192]
[1724336040319,1.18934676,2616.6,2616.4,3.82192]
[1724336040517,1.5857974,2616.8,2616.5,3.82189]
[1724336040518,1.18934676,2616.7,2616.5,3.82189]
[1724336040718,1.18934676,2616.7,2616.6,3.82175]
[1724336040918,1.18934676,2616.8,2616.6,3.82175]
[1724336041132,1.18934676,2616.7,2616.6,3.82175]
[1724336041347,1.18934676,2616.7,2616.4,3.82192]
[1724336041732,1.18934676,2616.7,2616.3,3.82218]
[1724336041934,1.18934676,2616.6,2616.3,3.82218]
[1724336042248,1.5857974,2616.7,2616.4,3.82204]
[1724336042249,1.18934676,2616.5,2616.4,3.82204]
[1724336042454,1.18934676,2616.8,2616.7,3.8216]
[1724336042860,1.18934676,2616.9,2616.7,3.8216]
[1724336043703,1.18934676,2616.9,2616.8,3.82146]
[1724336044430,1.18934676,2617.0,2616.9,3.82131]
[1724336045328,1.18934676,2617.0,2616.7,8.02522]
[1724336045513,1.18934676,2616.9,2616.7,4.20362]
[1724336046029,1.18934676,2616.8,2616.5,3.8218]
[1724336046211,1.18934676,2616.7,2616.5,3.8218]
[1724336046558,1.18934676,2616.8,2616.7,3.8216]
[1724336046738,1.18934676,2616.9,2616.7,3.8216]
[1724336046908,1.18934676,2616.9,2616.7,3.82151]
[1724336047108,1.18934676,2616.9,2616.8,0.382151]
[1724336047361,1.18992575,2616.9,2616.7,3.82151]
[1724336047660,1.18993517,2616.9,2616.7,3.82151]
[1724336047865,1.18993517,2616.8,2616.6,3.82172]
[1724336048312,1.18993517,2616.8,2616.5,3.82181]
[1724336048650,1.18993517,2616.8,2616.5,4.3104366]
[1724336048865,1.18993517,2616.8,2616.3,3.82209]
[1724336049005,1.5857974,2616.9,2616.3,3.82209]
[1724336049006,1.18993517,2616.7,2616.5,3.82187]
[1724336050143,1.18993517,2616.7,2616.3,3.82211]
[1724336050144,1.18993517,2616.7,2616.4,3.82204]
[1724336050510,1.18993517,2616.7,2616.1,6.18545]
[1724336050755,1.18993517,2616.6,2616.3,3.8221]
[1724336050964,1.18993517,2616.5,2616.4,3.82204]
[1724336051140,1.18993517,2616.5,2616.3,3.8221]
[1724336051141,1.18993517,2616.6,2616.5,3.82189]
[1724336051345,1.18993517,2616.6,2616.3,3.82208]
[1724336051546,1.18972812,2616.5,2616.3,3.82208]
[1724336053057,1.18972812,2616.5,2616.1,7.64477]
[1724336053267,1.18972812,2616.4,2616.1,3.82238]
[1724336053564,1.18972812,2616.4,2616.2,3.82233]
[1724336053909,1.18972812,2616.5,2616.3,3.82216]
[1724336054161,1.18972812,2616.6,2616.3,3.8221]
[1724336054364,1.18972812,2616.5,2616.3,3.8221]
[1724336054513,1.18972812,2616.6,2616.3,3.8221]
[1724336054915,1.18972812,2616.5,2616.3,3.8221]
[1724336055854,1.18972812,2616.5,2616.1,3.82237]
[1724336056059,1.18972812,2616.5,2616.2,3.82225]
[1724336056560,1.18972812,2616.4,2616.2,3.82225]
[1724336057360,1.18972812,2616.4,2616.3,3.82219]
[1724336057563,1.18972812,2616.5,2616.3,7.64438]
[1724336057730,1.18972812,2616.5,2616.4,3.82204]
[1724336058063,1.18972812,2616.7,2616.6,3.82175]
[1724336058246,1.18972812,2616.8,2616.6,3.82175]
[1724336058415,1.18972812,2616.8,2616.7,3.8216]
[1724336058621,1.18972812,2616.8,2616.7,4.20376]
[1724336058844,1.18972812,2616.9,2616.8,3.82146]
[1724336059253,1.18972812,2616.9,2616.7,4.20376]
[1724336059254,1.5857974,2616.9,2616.7,4.20376]
[1724336059448,1.19047517,2616.8,2616.7,3.8216]
[1724336059868,1.19047517,2616.8,2616.7,3.7216]
[1724336060865,1.19047517,2616.9,2616.7,7.5432]
[1724336061035,1.19047517,2616.8,2616.7,7.5432]
[1724336061224,1.19047517,2616.8,2616.7,3.7216]
[1724336061627,1.19047517,2616.9,2616.8,3.82146]
[1724336061821,1.19047517,2617.0,2616.9,7.64262]
[1724336062027,1.98394711,2617.2,2616.8,6.927326]
[1724336062028,1.19047517,2617.2,2616.8,6.927326]
[1724336062270,1.19047517,2617.2,2617.1,3.82102]
[1724336062577,1.19047517,2617.4,2617.3,7.64146]
[1724336062725,1.19047517,2617.5,2617.4,7.64116]
[1724336063229,1.19047517,2617.5,2617.4,3.82058]
[1724336063549,1.19047517,2617.6,2617.5,3.82043]
[1724336063739,1.19047517,2617.7,2617.6,3.82029]
[1724336063939,1.19047517,2617.7,2617.6,7.64058]
[1724336064268,1.19047517,2617.8,2617.6,3.82027]
[1724336064577,1.19047517,2617.9,2617.6,3.82027]
[1724336064756,1.19047517,2617.7,2617.2,3.82079]
[1724336064960,3.62004372,2617.5,2616.8,3.82137]
[1724336065125,3.62004372,2617.5,2616.9,3.0]
[1724336065126,1.18884372,2617.3,2616.9,3.0]
[1724336065322,1.18884372,2617.3,2616.8,3.82137]
[1724336065323,1.18884372,2617.3,2616.8,3.8214]
[1724336065524,1.18884372,2617.3,2616.9,3.82131]
[1724336065840,1.5857974,2617.4,2616.8,3.82134]
[1724336065841,1.18884372,2617.2,2616.8,3.82134]
[1724336066366,1.18884372,2617.0,2616.4,3.82193]